bitfinex-derivatives/quotes_SOLF0:USTF0_20250124
["timestamp","ask_amount","ask_price","bid_price","bid_amount"]
[1737743780133,3.7925,263.59,263.54,0.02517544]
[1737743780831,0.02452173,263.6,263.54,0.02517544]
[1737743781439,0.02452173,263.6,263.55,3.7929]
[1737743781643,0.02452173,263.6,263.54,0.02517544]
[1737743782036,0.02452173,263.6,263.55,3.793]
[1737743783743,0.02452173,263.6,263.56,3.7928]
[1737743783939,0.02452173,263.6,263.54,0.02517544]
[1737743784244,1.3215,263.75,263.57,8.97586264]
[1737743784448,0.6641973,263.74,263.58,2.6016]
[1737743784840,3.7907,263.72,263.58,2.6016]
[1737743785146,2.52,263.75,263.58,2.6016]
[1737743785345,3.7907,263.71,263.64,3.7916]
[1737743785644,24.06367295,263.76,263.62,0.02816704]
[1737743786341,11.49586264,263.76,263.62,0.02816704]
[1737743786742,3.7908,263.71,263.64,3.7917]
[1737743786945,11.49586264,263.76,263.61,8.97586264]
[1737743787144,8.97586264,263.76,263.65,0.02633632]
[1737743787747,3.7906,263.72,263.66,3.7913]
[1737743788244,8.97586264,263.76,263.65,0.02633632]
[1737743788547,8.97586264,263.72,263.65,0.02633632]
[1737743789042,3.7913,263.67,263.65,0.02633632]
[1737743790145,3.7924,263.59,263.53,3.7931]
[1737743790345,8.97586264,263.64,263.53,3.7931]
[1737743791042,3.7922,263.61,263.54,3.7931]
[1737743791346,3.81914885,263.61,263.56,0.02627116]
[1737743792549,3.7924,263.59,263.56,0.02627116]
[1737743792742,0.02694885,263.61,263.56,0.02627116]
[1737743793450,3.81914885,263.61,263.56,0.02627116]
[1737743793651,0.02694885,263.61,263.56,0.02627116]
[1737743794252,3.81924885,263.61,263.56,0.02627116]
[1737743794648,0.02694885,263.61,263.56,0.02627116]
[1737743796049,3.7923,263.6,263.56,0.02627116]
[1737743798760,0.02694885,263.61,263.56,0.02627116]
[1737743799655,5.75018139,263.58,263.56,0.02627116]
[1737743800361,5.77713024,263.61,263.56,0.02627116]
[1737743800654,5.77713024,263.61,263.57,3.7926]
[1737743800855,5.77713024,263.61,263.56,0.02627116]
[1737743801562,5.77713024,263.61,263.58,3.7925]
[1737743802963,3.7924,263.59,263.56,0.02627116]
[1737743804054,5.77713024,263.61,263.56,0.02627116]
[1737743804256,9.56933024,263.61,263.56,0.02627116]
[1737743804560,5.77713024,263.61,263.56,3.81907116]
[1737743806158,3.7923,263.6,263.56,3.81907116]
[1737743806958,3.7923,263.6,263.56,0.02627116]
[1737743807163,5.77713024,263.61,263.56,0.02627116]
[1737743807463,3.7925,263.59,263.56,0.02627116]
[1737743807968,5.77713024,263.61,263.56,0.02627116]
[1737743808666,5.75018139,263.58,263.56,0.02627116]
[1737743809364,9.54278139,263.58,263.56,0.02627116]
[1737743809766,5.75018139,263.58,263.56,0.02627116]
[1737743810867,3.7927,263.57,263.56,0.02627116]
[1737743812764,9.54278139,263.58,263.56,0.02627116]
[1737743812964,5.77713024,263.61,263.56,0.02627116]
[1737743813467,5.77713024,263.61,263.59,3.7924]
[1737743813864,5.77713024,263.61,263.56,0.02627116]
[1737743814067,5.75018139,263.57,263.45,5.75018139]
[1737743814465,3.7931,263.54,263.48,3.7939]
[1737743814667,3.7931,263.54,263.45,5.75018139]
[1737743815268,0.02522413,263.52,263.47,0.0244208]
[1737743815465,0.02522413,263.52,263.5,3.7937]
[1737743818866,5.75018139,263.57,263.47,0.0244208]
[1737743819069,5.75018139,263.57,263.55,3.7929]
[1737743819670,3.7928,263.56,263.49,2.4822]
[1737743820067,0.02579812,263.55,263.5,0.028089]
[1737743820275,0.02579812,263.55,263.53,3.7933]
[1737743820772,0.02579812,263.55,263.52,3.7933]
[1737743821568,5.75018139,263.6,263.59,3.7924]
[1737743821766,5.75018139,263.66,263.54,5.75018139]
[1737743821967,5.75018139,263.66,263.57,5.75018139]
[1737743822170,5.75018139,263.69,263.57,5.75018139]
[1737743822874,5.75018139,263.69,263.6,0.02608503]
[1737743823075,5.75018139,263.69,263.65,3.7914]
[1737743823772,9.54118139,263.69,263.64,3.7917]
[1737743824377,5.75018139,263.69,263.64,3.7917]
[1737743824771,5.75018139,263.69,263.6,5.77626642]
[1737743825073,5.75018139,263.66,263.6,0.02608503]
[1737743825376,5.75018139,263.69,263.6,0.02608503]
[1737743827175,3.7912,263.68,263.63,3.7918]
[1737743829078,3.7912,263.68,263.64,3.7917]
[1737743829376,3.7913,263.67,263.6,0.02608503]
[1737743829577,5.75018139,263.66,263.6,0.02608503]
[1737743829777,3.7917,263.65,263.6,0.02608503]
[1737743830080,5.75018139,263.66,263.6,3.81818503]
[1737743830278,5.75018139,263.66,263.6,0.02608503]
[1737743830777,3.7915,263.65,263.61,3.7921]
[1737743830973,3.7915,263.65,263.6,0.02608503]
[1737743830974,5.75018139,263.69,263.6,5.77626642]
[1737743831274,5.75018139,263.72,263.63,5.75018139]
[1737743831776,5.75018139,263.72,263.65,0.0274681]
[1737743833183,9.54078139,263.72,263.68,3.791]
[1737743833986,5.75018139,263.72,263.65,0.0274681]
[1737743834286,9.54028139,263.75,263.66,5.75018139]
[1737743835282,9.54028139,263.75,263.68,3.791]
[1737743835485,9.54028139,263.75,263.66,5.75018139]
[1737743837084,9.54028139,263.75,263.7,3.7907]
[1737743837585,9.54028139,263.75,263.66,5.75018139]
[1737743839085,9.54028139,263.75,263.71,3.7907]
[1737743839683,5.75018139,263.75,263.71,3.7907]
[1737743840082,5.75018139,263.75,263.7,0.02795019]
[1737743840289,5.75018139,263.78,263.7,0.02795019]
[1737743840487,5.75018139,263.81,263.72,5.75018139]
[1737743840789,5.75018139,263.84,263.82,3.7891]
[1737743840988,5.75018139,263.84,263.75,5.75018139]
[1737743841288,5.75018139,263.84,263.8,0.0254133]
[1737743841488,5.75018139,263.84,263.82,3.7891]
[1737743842387,5.75018139,263.84,263.8,0.0254133]
[1737743842590,5.75018139,263.84,263.8,3.8147133]
[1737743842886,5.75018139,263.84,263.8,0.0254133]
[1737743844286,5.75018139,263.87,263.83,3.7889]
[1737743845081,5.75018139,263.87,263.84,3.7888]
[1737743845386,5.75018139,263.87,263.8,0.0254133]
[1737743846385,5.75018139,263.9,263.86,3.7885]
[1737743846690,5.75018139,263.97,263.87,5.75018139]
[1737743846889,5.75018139,263.97,263.9,5.75018139]
[1737743847088,5.75018139,264.0,263.9,5.75018139]
[1737743847388,5.75018139,264.0,263.92,0.02885644]
[1737743847886,5.75018139,264.0,263.97,3.7869]
[1737743848086,5.75018139,264.0,263.92,0.02885644]
[1737743848389,5.75018139,264.0,263.93,5.75018139]
[1737743848589,5.75018139,264.0,263.93,6.97808139]
[1737743848890,5.75018139,264.0,263.95,3.7871]
[1737743849091,3.7862,264.03,263.95,3.7871]
[1737743849092,9.53638139,264.03,263.95,3.7871]
[1737743849289,9.53638139,264.03,263.93,6.97808139]
[1737743849290,5.75018139,264.03,263.93,6.97808139]
[1737743849589,3.7862,264.02,263.93,6.97808139]
[1737743849786,8.95508148,264.05,263.93,1.2279]
[1737743849988,8.95508148,264.01,263.93,1.2279]
[1737743850390,3.7867,263.99,263.96,0.02525024]
[1737743850693,8.95508148,264.01,263.96,0.02525024]
[1737743850893,0.66675244,264.0,263.96,0.02525024]
[1737743851494,8.95508148,264.01,263.96,0.02525024]
[1737743852194,3.7867,263.99,263.96,0.02525024]
[1737743853195,3.7868,263.98,263.96,0.02525024]
[1737743853390,8.95508148,264.01,263.96,0.02525024]
[1737743853586,0.6664428,264.0,263.96,0.02525024]
[1737743855097,3.7869,263.97,263.96,0.02525024]
[1737743855296,4.4533428,263.97,263.96,0.02525024]
[1737743856195,3.7869,263.97,263.96,0.02525024]
[1737743856401,4.45328655,263.97,263.96,0.02525024]
[1737743856603,13.40836803,263.97,263.96,0.00455024]
[1737743856999,3.7879,263.91,263.84,0.31528]
[1737743857199,8.95508148,263.93,263.84,4.10408]
[1737743857503,3.7881,263.89,263.84,4.10408]
[1737743857805,8.95508148,263.93,263.84,0.31528]
[1737743858000,8.95508148,263.97,263.84,0.31528]
[1737743858201,3.7873,263.95,263.86,0.02654954]
[1737743858405,0.02799824,263.93,263.86,0.02654954]
[1737743859200,0.02799824,263.93,263.91,3.7877]
[1737743859603,0.02799824,263.93,263.87,2.5169]
[1737743859802,11.47508148,264.05,263.88,8.95508148]
[1737743860004,0.66608297,264.04,263.88,8.95508148]
[1737743860402,3.7863,264.02,263.92,3.7875]
[1737743860605,3.7863,264.02,263.88,8.95508148]
[1737743861007,3.7863,264.02,263.92,0.02543144]
[1737743862111,3.7863,264.02,263.96,3.7869]
[1737743862908,0.0499,264.15,263.92,0.02543144]
[1737743862909,8.95508148,264.09,263.92,8.98051292]
[1737743863111,3.7861,264.04,263.99,3.7866]
[1737743865013,11.47508148,264.09,263.99,3.7866]
[1737743865212,0.66613904,264.08,263.99,3.7866]
[1737743865811,0.66613904,264.08,263.98,0.02446801]
[1737743866013,8.95508148,264.17,264.0,8.95508148]
[1737743866212,0.66637245,264.16,264.01,2.6011]
[1737743866510,4.45067245,264.16,264.09,3.7852]
[1737743866715,0.66637245,264.15,264.09,3.7852]
[1737743866917,0.66637245,264.15,264.06,0.02760928]
[1737743867118,3.7843,264.16,264.1,3.7851]
[1737743867417,3.7843,264.16,264.06,0.02760928]
[1737743867810,3.7841,264.17,264.06,0.02760928]
[1737743868717,2.52,264.2,264.06,0.02760928]
[1737743869016,3.7842,264.16,264.1,3.7849]
[1737743869414,3.7842,264.16,264.1,3.80907289]
[1737743870019,3.784,264.18,264.1,0.02417289]
[1737743870215,12.47568148,264.25,264.1,0.02417289]
[1737743870517,4.4495231,264.24,264.1,0.02417289]
[1737743870711,0.66642702,264.23,264.1,0.02417289]
[1737743871114,0.66642702,264.23,264.17,3.784]
[1737743871419,0.66642702,264.22,264.17,3.784]
[1737743871619,0.66642702,264.22,264.17,3.80842925]
[1737743871818,3.7832,264.23,264.17,3.80842925]
[1737743872020,3.7831,264.24,264.17,3.80842925]
[1737743872321,0.66658827,264.23,264.17,3.80842925]
[1737743872517,3.7831,264.24,264.17,3.80842925]
[1737743872717,0.66658106,264.23,264.17,3.80842925]
[1737743872917,8.95508148,264.21,264.17,0.02442925]
[1737743873115,0.66648534,264.2,264.17,0.02442925]
[1737743874122,3.7839,264.18,264.17,0.02442925]
[1737743874325,4.45038534,264.18,264.17,0.02442925]
[1737743874522,4.45036147,264.18,264.17,0.02442925]
[1737743874923,4.45036147,264.18,264.03,3.7859]
[1737743874924,0.66646147,264.18,264.03,3.7859]
[1737743875224,8.95508148,264.15,264.03,3.7859]
[1737743875722,3.7853,264.09,264.03,3.7859]
[1737743875917,3.7853,264.09,264.03,3.8108609]
[1737743876223,3.80975737,264.09,264.03,3.8108609]
[1737743877024,3.7854,264.08,264.03,0.0249609]
[1737743877223,0.02445737,264.09,264.03,0.0249609]
[1737743877523,0.02445737,264.09,264.03,3.8109609]
[1737743877524,3.80975737,264.09,264.03,3.8109609]
[1737743878722,0.02445737,264.09,264.03,3.8109609]
[1737743878923,3.7854,264.08,264.03,3.8109609]
[1737743879918,0.02445737,264.09,264.03,0.0249609]
[1737743881619,3.7854,264.08,264.03,3.8109609]
[1737743881920,0.02445737,264.09,264.03,0.0249609]
[1737743883725,3.7855,264.08,264.03,0.0249609]
[1737743884224,0.02445737,264.09,264.03,0.0249609]
[1737743885221,3.7859,264.04,264.03,0.0249609]
[1737743886330,3.7867,263.99,263.93,3.7874]
[1737743886629,3.7867,263.99,263.88,1.2924]
[1737743886829,8.95508148,264.05,263.88,1.2924]
[1737743887129,3.787,263.97,263.88,1.2924]
[1737743887532,0.02646743,263.95,263.9,0.02528017]
[1737743887927,8.95508148,264.01,263.88,1.2924]
[1737743888132,3.7878,263.91,263.9,0.02612376]
[1737743891229,0.02866952,263.95,263.9,0.02612376]
[1737743892927,0.02866952,263.95,263.92,3.7876]
[1737743893730,0.02866952,263.95,263.93,3.7875]
[1737743894732,8.95508148,264.09,264.02,3.7862]
[1737743894937,8.95508148,264.09,263.92,2.5371]
[1737743895138,2.52,264.11,263.95,8.95508148]
[1737743895631,8.95508148,264.13,263.95,8.95508148]
[1737743895829,0.9782,264.21,264.09,3.7851]
[1737743895830,8.95508148,264.17,264.09,3.7851]
[1737743896028,0.66556462,264.16,264.0,0.02571497]
[1737743896228,0.66556462,264.16,263.99,8.95508148]
[1737743896434,0.66556462,264.16,264.05,3.7856]
[1737743896832,3.7851,264.1,263.99,8.95508148]
[1737743897429,3.7854,264.08,264.02,0.02913514]
[1737743897633,8.95508148,264.09,264.02,0.02913514]
[1737743898633,3.7855,264.08,264.02,0.02913514]
[1737743899038,3.7849,264.12,264.04,3.7858]
[1737743899239,0.66544561,264.11,264.02,0.02913514]
[1737743899739,0.66544561,264.11,264.05,3.7857]
[1737743899939,3.7849,264.12,264.05,3.7857]
[1737743900138,8.95508148,264.13,264.02,0.02913514]
[1737743900431,3.7846,264.14,264.08,3.7853]
[1737743900631,8.95508148,264.17,264.03,1.3045]
[1737743900837,8.95508148,264.17,264.08,0.0241351]
[1737743901036,8.95508148,264.17,264.08,3.8094351]
[1737743901637,8.95508148,264.17,264.08,0.0241351]
[1737743901936,3.7844,264.15,264.09,3.7852]
[1737743902539,8.95508148,264.17,264.08,0.0241351]
[1737743902839,12.73918148,264.17,264.08,0.0241351]
[1737743903333,3.7842,264.16,264.1,3.785]
[1737743903529,8.95508148,264.17,264.08,0.0241351]
[1737743904038,0.66606226,264.16,264.08,0.0241351]
[1737743904740,3.7849,264.11,264.08,0.0241351]
[1737743904940,2.52,264.2,264.08,0.0241351]
[1737743904941,8.95508148,264.13,264.08,0.0241351]
[1737743905633,3.7852,264.09,264.08,0.0241351]
[1737743907140,3.7851,264.1,264.08,0.0241351]
[1737743907736,8.95508148,264.09,264.08,0.0241351]
[1737743907936,8.95508148,264.09,264.0,3.7864]
[1737743908141,8.95508148,264.05,263.95,1.3259]
[1737743908440,12.74088148,264.05,263.99,3.7865]
[1737743909141,12.76809841,264.05,263.99,3.81206856]
[1737743909440,3.786,264.04,263.99,0.02556856]
[1737743909641,8.98229841,264.05,263.99,0.02556856]
[1737743910744,3.7861,264.03,263.99,0.02556856]
[1737743911242,8.98229841,264.05,263.99,0.02556856]
[1737743911442,12.76819841,264.05,263.99,0.02556856]
[1737743912243,3.786,264.04,263.99,0.02556856]
[1737743912437,8.98229841,264.05,263.99,0.02556856]
[1737743913242,12.76819841,264.05,263.99,3.81216856]
[1737743913540,0.02721693,264.05,263.99,0.02556856]
[1737743914142,0.02721693,264.05,264.04,3.7859]
[1737743914343,0.02721693,264.05,263.99,0.02556856]
[1737743915241,3.7862,264.03,263.99,0.02556856]
[1737743917244,0.02721693,264.05,263.99,0.02556856]
[1737743920047,8.95508148,264.02,263.99,0.02556856]
[1737743920649,3.7865,264.0,263.99,0.02556856]
[1737743921551,12.74148148,264.02,263.99,0.02556856]
[1737743922249,8.95508148,264.02,263.99,0.02556856]
[1737743924150,3.7865,264.0,263.99,0.02556856]
[1737743925253,8.95508148,263.97,263.87,1.3084]
[1737743925553,8.95508148,263.93,263.87,1.3084]
[1737743926154,3.7877,263.92,263.87,5.0968]
[1737743926357,8.98277432,263.93,263.87,1.33423241]
[1737743926657,3.7879,263.9,263.87,0.02583241]
[1737743927456,3.7882,263.88,263.87,0.02583241]
[1737743927954,8.95508148,263.89,263.84,0.31528]
[1737743928159,8.95508148,263.85,263.84,0.31528]
[1737743928757,8.95508148,263.89,263.84,0.31528]
[1737743928957,12.74328148,263.89,263.84,0.31528]
[1737743929259,8.97898308,263.89,263.84,0.34157432]
[1737743930760,8.95508148,263.85,263.84,0.34157432]
[1737743932360,12.74378148,263.85,263.84,0.34157432]
[1737743932859,3.7892,263.82,263.76,1.2855]
[1737743933058,8.95508148,263.81,263.65,1.2454]
[1737743933258,8.95508148,263.81,263.73,3.7903]
[1737743933454,3.7895,263.79,263.73,3.7903]
[1737743933962,3.79,263.76,263.73,0.02730059]
[1737743934162,0.02889027,263.79,263.73,0.02730059]
[1737743935164,0.02889027,263.79,263.78,3.7897]
[1737743940459,8.95508148,263.91,263.73,0.02730059]
[1737743940766,6.308,263.9,263.86,3.7885]
[1737743940958,8.95508148,263.95,263.74,8.95508148]
[1737743941158,8.95508148,263.95,263.78,8.95508148]
[1737743941365,8.95508148,263.95,263.79,2.4757]
[1737743941765,8.95508148,263.95,263.84,0.02865665]
[1737743941766,0.02661674,263.9,263.84,0.02865665]
[1737743943464,0.02661674,263.9,263.86,3.7885]
[1737743943659,0.02661674,263.9,263.84,0.02865665]
[1737743943966,3.7885,263.86,263.84,0.02865665]
[1737743944368,8.95508148,263.87,263.84,0.02865665]
[1737743944759,3.7887,263.85,263.84,0.02865665]
[1737743945167,8.95508148,263.87,263.84,0.02865665]
[1737743945366,3.7887,263.85,263.84,0.02865665]
[1737743948471,8.95508148,263.87,263.84,0.02865665]
[1737743948671,0.02661674,263.9,263.84,0.02865665]
[1737743949072,3.7881,263.89,263.84,0.02865665]
[1737743949972,0.02661674,263.9,263.85,3.7886]
[1737743950272,0.02661674,263.9,263.84,0.02865665]
[1737743950764,0.02661674,263.9,263.85,3.7886]
[1737743950969,0.02661674,263.9,263.84,0.02865665]
[1737743951872,3.81461674,263.9,263.84,0.02865665]
[1737743953073,3.81461674,263.9,263.85,3.7886]
[1737743954073,0.02661674,263.9,263.84,0.02865665]
[1737743954570,0.69392036,263.9,263.84,0.02865665]
[1737743954766,3.7885,263.86,263.84,0.02865665]
[1737743955272,3.7887,263.85,263.84,0.02865665]
[1737743957178,12.74358148,263.87,263.84,0.02865665]
[1737743957781,3.7886,263.86,263.84,0.02865665]
[1737743959879,3.7887,263.85,263.84,0.02865665]
[1737743965780,3.7885,263.86,263.84,0.02865665]
[1737743968478,0.02661674,263.9,263.84,0.02865665]
[1737743968781,0.02661674,263.9,263.89,3.7881]
[1737743969376,2.52,263.98,263.95,3.7872]
[1737743969580,41.67064217,264.0,263.86,8.95508148]
[1737743969983,41.67064217,264.0,263.98,3.7868]
[1737743970980,0.02896214,264.02,263.98,3.7868]
[1737743971380,0.02896214,264.02,263.96,3.81587011]
[1737743972086,0.02896214,264.02,263.97,3.7869]
[1737743974286,0.02896214,264.02,263.96,0.02887011]
[1737743974487,2.52,264.09,263.96,0.02887011]
[1737743974786,2.52,264.09,264.06,3.7856]
[1737743974985,6.98242003,264.14,263.98,8.95508148]
[1737743975189,0.66860953,264.13,263.98,8.95508148]
[1737743975387,8.95508148,264.15,263.98,8.95508148]
[1737743975688,0.02044307,264.08,264.03,0.02677512]
[1737743976587,0.02044307,264.08,264.05,3.7858]
[1737743976980,0.02044307,264.08,264.03,0.02677512]
[1737743977384,0.02044307,264.08,264.07,3.7855]
[1737743977591,8.95508148,264.15,264.03,0.02677512]
[1737743977984,8.95508148,264.19,264.03,0.02677512]
[1737743978286,8.95508148,264.19,264.02,8.95508148]
[1737743978687,8.95508148,264.19,264.08,0.02478126]
[1737743979382,3.7844,264.15,264.08,0.02478126]
[1737743979888,8.95508148,264.11,264.08,0.02478126]
[1737743980391,8.95508148,264.15,264.1,3.7851]
[1737743980786,8.95508148,264.15,264.1,0.0266909]
[1737743981089,0.0804,264.26,264.1,0.0266909]
[1737743981090,8.95508148,264.19,264.1,0.0266909]
[1737743981288,8.95508148,264.19,264.02,8.95508148]
[1737743981490,8.95508148,264.19,264.12,0.02911769]
[1737743982186,0.66942975,264.18,264.12,3.81391769]
[1737743982388,8.95508148,264.19,264.12,0.02911769]
[1737743982984,8.95508148,264.23,264.12,0.02911769]
[1737743983387,12.73838148,264.23,264.03,1.343]
[1737743983585,11.39,264.36,264.03,1.343]
[1737743983586,8.95508148,264.27,264.15,0.02673965]
[1737743983790,12.73778148,264.27,264.22,3.7833]
[1737743983986,8.95508148,264.27,264.18,0.02555808]
[1737743985290,8.95508148,264.27,264.24,3.7831]
[1737743986195,8.95508148,264.27,264.19,1.286]
[1737743986499,8.95508148,264.27,264.23,3.7831]
[1737743987995,12.73768148,264.27,264.23,3.7831]
[1737743988298,8.95508148,264.27,264.23,3.7831]
[1737743989992,3.7825,264.28,264.24,3.783]
[1737743990197,3.7823,264.3,264.19,1.286]
[1737743990397,3.7823,264.3,264.23,0.02584433]
[1737743992099,3.7823,264.3,264.26,3.7827]
[1737743994603,8.95508148,264.35,264.23,0.02584433]
[1737743994806,0.66904522,264.34,264.19,1.286]
[1737743995002,0.66904522,264.34,264.26,0.02633173]
[1737743995302,0.66904522,264.34,264.28,3.7824]
[1737743995497,8.95508148,264.35,264.26,0.02633173]
[1737743995699,12.73668148,264.35,264.26,0.02633173]
[1737743996299,3.7814,264.36,264.33,3.7818]
[1737743996498,8.95508148,264.4,264.33,3.7818]
[1737743996698,0.6689026,264.39,264.34,0.02594181]
[1737743996907,4.4498026,264.39,264.35,3.7815]
[1737743997103,3.7809,264.39,264.34,0.02594181]
[1737743997499,8.95508148,264.4,264.35,3.7815]
[1737743997699,8.95508148,264.4,264.34,0.02594181]
[1737743998099,3.7805,264.42,264.38,3.781]
[1737743998305,8.95508148,264.44,264.27,10.22168148]
[1737743998504,8.95508148,264.44,264.37,0.02404491]
[1737743998704,12.73528148,264.44,264.39,3.7809]
[1737743998905,8.95508148,264.44,264.37,0.02404491]
[1737743999206,3.7805,264.43,264.37,3.80524491]
[1737743999706,3.7806,264.41,264.37,0.02404491]
[1737743999908,8.95508148,264.44,264.37,0.02404491]
[1737744000302,3.7805,264.43,264.37,3.80524491]
[1737744000708,8.95508148,264.44,264.37,0.02404491]
[1737744001010,3.7807,264.41,264.37,0.02404491]
[1737744001507,8.95508148,264.44,264.37,0.02404491]
[1737744001809,8.95508148,264.4,264.37,0.02404491]
[1737744002307,3.7809,264.4,264.37,0.02404491]
[1737744002607,8.95508148,264.44,264.37,0.02404491]
[1737744002808,3.781,264.39,264.37,0.02404491]
[1737744003009,8.95508148,264.4,264.37,0.02404491]
[1737744003411,3.7811,264.38,264.37,0.02404491]
[1737744003610,8.95508148,264.4,264.24,1.253]
[1737744003805,8.95508148,264.34,264.24,1.253]
[1737744004312,8.95508148,264.34,264.19,1.286]
[1737744004508,8.95508148,264.3,264.19,1.286]
[1737744004706,8.95508148,264.3,264.12,2.6376]
[1737744004905,0.02366485,264.27,264.22,0.02836913]
[1737744005315,3.7832,264.23,264.22,0.02836913]
[1737744006103,3.783,264.25,264.22,0.02836913]
[1737744006307,8.95508148,264.26,264.22,0.02836913]
[1737744008412,8.95508148,264.26,264.13,1.2716]
[1737744008612,12.73888148,264.19,264.13,1.2716]
[1737744008812,8.95508148,264.19,264.12,1.3332]
[1737744009205,8.95508148,264.19,264.12,1.01775]
[1737744009611,3.809216,264.18,264.13,0.02491095]
[1737744009812,0.025216,264.18,264.13,0.02491095]
[1737744010214,3.7842,264.16,264.13,0.02491095]
[1737744012416,3.7844,264.15,264.13,0.02491095]
[1737744013611,0.025216,264.18,264.13,0.02491095]
[1737744013817,3.7845,264.14,264.13,0.02491095]
[1737744015621,8.95508148,264.15,264.04,3.7858]
[1737744015816,8.95508148,264.11,263.99,1.3221]
[1737744016118,8.95508148,264.07,263.96,3.787]
[1737744016323,8.95508148,264.07,263.91,3.8252]
[1737744017022,0.02774675,264.02,263.96,0.02520964]
[1737744019123,3.7865,264.0,263.96,3.81230964]
[1737744019917,3.7867,263.99,263.96,0.02520964]
[1737744020124,8.95508148,263.99,263.96,0.02520964]
[1737744021024,3.7869,263.97,263.96,0.02520964]
[1737744021917,3.7877,263.92,263.84,1.3307]
[1737744022118,8.95508148,263.95,263.84,1.3307]
[1737744022525,8.95508148,263.95,263.85,0.31473]
[1737744022921,20.34508148,264.03,263.85,0.31473]
[1737744022922,8.95508148,263.91,263.85,0.31473]
[1737744023123,8.95508148,263.91,263.87,0.02639516]
[1737744023421,3.7881,263.89,263.87,0.02639516]
[1737744023621,8.95508148,263.91,263.85,0.31473]
[1737744023825,12.74358148,263.86,263.72,3.7905]
[1737744024028,8.95508148,263.86,263.66,8.95508148]
[1737744024423,8.95508148,263.9,263.66,8.95508148]
[1737744024820,0.0263713,263.81,263.75,0.0279251]
[1737744026327,0.0263713,263.81,263.76,3.7898]
[1737744026526,0.0263713,263.81,263.75,0.0279251]
[1737744027627,0.0263713,263.81,263.79,3.7895]
[1737744029022,0.0263713,263.81,263.75,0.0279251]
[1737744029222,8.95508148,263.78,263.75,0.0279251]
[1737744029418,8.95508148,263.78,263.65,1.2274]
[1737744029619,8.95508148,263.68,263.56,1.3305]
[1737744029822,8.95508148,263.68,263.6,3.7922]
[1737744030228,8.95508148,263.68,263.58,3.7924]
[1737744030522,8.95508148,263.64,263.6,0.02520406]
[1737744030928,2.52,263.67,263.54,8.95508148]
[1737744031129,0.02891534,263.65,263.59,0.0272079]
[1737744031329,0.02891534,263.65,263.59,1.3511079]
[1737744031529,1.534e-05,263.65,263.64,3.7917]
[1737744033222,2.54,263.8,263.62,8.95508148]
[1737744033422,2.54,263.8,263.68,8.95508148]
[1737744033622,2.54,263.8,263.71,3.7906]
[1737744033829,2.54,263.8,263.63,14.34969203]
[1737744034231,2.54,263.8,263.74,3.7902]
[1737744034430,0.02880253,263.74,263.69,0.02879646]
[1737744034627,14.34969203,263.77,263.6,1.2991]
[1737744034931,0.02622517,263.74,263.69,0.02566571]
[1737744035331,3.7907,263.71,263.69,0.02566571]
[1737744037028,3.7907,263.71,263.69,6.571e-05]
[1737744037527,3.7916,263.65,263.59,3.7922]
[1737744037731,14.34969203,263.72,263.52,3.8349]
[1737744038627,3.7911,263.68,263.6,3.7921]
[1737744038829,0.02818242,263.65,263.59,0.02661517]
[1737744039828,0.02818242,263.65,263.63,3.7918]
[1737744042834,0.02818242,263.65,263.59,3.81901517]
[1737744043228,0.02818242,263.65,263.59,0.02661517]
[1737744044838,3.7919,263.63,263.59,0.02661517]
[1737744045335,3.792,263.62,263.59,0.02661517]
[1737744046339,0.02818242,263.65,263.59,0.02661517]
[1737744046538,3.7918,263.64,263.59,0.02661517]
[1737744046739,3.7918,263.64,263.59,3.81901517]
[1737744047134,0.02818242,263.65,263.59,3.81901517]
[1737744047336,0.02818242,263.65,263.59,0.02661517]
[1737744047540,14.34969203,263.62,263.54,3.7931]
[1737744047741,14.34969203,263.62,263.52,1.3327]
[1737744048647,0.0276234,263.6,263.54,0.02821552]
[1737744049336,0.0276234,263.6,263.57,3.7926]
[1737744049645,0.0276234,263.6,263.59,3.7924]
[1737744051346,0.0276234,263.6,263.58,3.7925]
[1737744052843,14.34969203,263.67,263.54,0.02821552]
[1737744053044,14.34969203,263.71,263.68,3.791]
[1737744053647,14.34969203,263.71,263.55,1.2464]
[1737744054147,0.02543157,263.66,263.6,0.02496545]
[1737744054747,0.02543157,263.66,263.65,3.7915]
[1737744059851,0.02543157,263.66,263.63,3.7917]
[1737744060051,0.02543157,263.66,263.6,0.02496545]
[1737744060847,8.97684805,263.63,263.6,0.02496545]
[1737744061448,3.792,263.62,263.6,0.02496545]
[1737744061752,8.97684805,263.63,263.6,0.02496545]
[1737744062054,3.792,263.62,263.6,0.02496545]
[1737744062248,8.97684805,263.63,263.6,0.02496545]